[Event "Chinese Team-ch Men 2025"]
[Site "Zhang Jiakou Hebei"]
[Date "2025.04.29"]
[Round "5.8"]
[White "Jin, Yueheng"]
[Black "Gong, Sunle"]
[Result "1/2-1/2"]
[Annotator "RC"]
[ECO "E04"]
[WhiteElo "2383"]
[BlackElo "2410"]
[PlyCount "73"]
[EventDate "2025.04.26"]
[EventType "team-tourn"]
[EventCountry "CHN"]
[SourceTitle "playchess.com"]
[Source "ChessBase"]
[SourceQuality "1"]
[TimeControl "5400+30"]

1. c4 {[%emt 0:00:12]} e6 {[%emt 0:00:27]} 2. Nf3 {[%emt 0:00:35]} d5 {[%emt 0:00:05]} 3. d4 {[%emt 0:00:06]} Nf6 {[%emt 0:00:10]} 4. g3 {[%emt 0:00:09]} dxc4 {[%emt 0:00:08]} 5. Bg2 {[%emt 0:00:13]} c5 {[%emt 0:00:08]} 6. O-O {[%emt 0:01:02]} Nc6 {[%emt 0:00:04]} 7. dxc5 {[%emt 0:02:04]} Qxd1 {[%emt 0:00:08]} 8. Rxd1 {[%emt 0:00:04]} Bxc5 {[%emt 0:00:04]} 9. Nbd2 {[%emt 0:00:04]} c3 {[%emt 0:00:03]} 10. bxc3 {[%emt 0:00:02]} O-O {[%emt 0:00:06]} 11. Nb3 {[%emt 0:00:06]} Be7 {[%emt 0:00:04]} 12. Nfd4 {[%emt 0:00:17]} Bd7 {[%emt 0:00:09]} 13. Nxc6 {[%emt 0:01:33]} Bxc6 {[%emt 0:00:19]} 14. Bxc6 {[%emt 0:00:05]} bxc6 {[%emt 0:00:02]} 15. Be3 {[%emt 0:08:53]} a5 {[%emt 0:08:46]} 16. a4 {[%emt 0:13:22]} Nd5 {[%emt 0:02:17]} 17. Bd4 {[%emt 0:00:15]} Rfb8 {[%emt 0:00:51]} 18. Rab1 {[%emt 0:09:05]} Bf6 {[%emt 0:18:20]} 19. Bxf6 {[%emt 0:18:10]} gxf6 {[%emt 0:00:17]} 20. Rdc1 {[%emt 0:00:04]} Kf8 {[%emt 0:03:09]} 21. e4 {[%emt 0:02:06]} Ne7 {[%emt 0:26:25]} 22. Kf1 {[%emt 0:08:39]} f5 {[%emt 0:03:38]} 23. Nc5 {[%emt 0:01:37]} Ke8 {[%emt 0:01:43]} 24. f3 {[%emt 0:10:32]} fxe4 {[%emt 0:00:50]} 25. fxe4 {[%emt 0:00:04]} Ng6 {[%emt 0:02:27]} 26. Nd3 {[%emt 0:00:16]} Ke7 {[%emt 0:05:07]} 27. Ke2 {[%emt 0:00:04]} f6 {[%emt 0:03:25]} 28. Ke3 {[%emt 0:00:21]} Nf8 {[%emt 0:00:14]} 29. Nb2 {[%emt 0:02:26]} Kd8 {[%emt 0:05:49]} 30. Nc4 {[%emt 0:01:12]} Rxb1 {[%emt 0:00:36]} 31. Rxb1 {[%emt 0:00:09]} Kc7 {[%emt 0:00:04]} 32. e5 {[%emt 0:05:08]} f5 {[%emt 0:09:17]} 33. Nd6 {[%emt 0:00:15]} Ra7 {[%emt 0:02:02]} 34. Ne8+ {[%emt 0:01:21]} Kc8 {[%emt 0:00:29]} 35. Nd6+ {[%emt 0:00:38]} Kc7 {[%emt 0:00:23]} 36. Ne8+ {[%emt 0:03:23]} Kc8 {[%emt 0:00:39]} 37. Nd6+ {[%emt 0:01:42]} 1/2-1/2

[Event "Chinese Team-ch Men 2025"]
[Site "Zhang Jiakou Hebei"]
[Date "2025.04.29"]
[Round "5.9"]
[White "Xu, Xiangyu"]
[Black "Yu, Shaoteng"]
[Result "1-0"]
[Annotator "TA"]
[ECO "A40"]
[WhiteElo "2623"]
[BlackElo "2480"]
[PlyCount "37"]
[EventDate "2025.04.26"]
[EventType "team-tourn"]
[EventCountry "CHN"]
[SourceTitle "playchess.com"]
[Source "ChessBase"]
[SourceQuality "1"]
[TimeControl "5400+30"]

{[%evp 9,37,0,0,0,0,0,2,-71,0,-95,-93,-39,-91,-135,42,0,0,0,29988,-24,29989,29990,29990,29991,29992,29993,29993,233,29994,29995]} 1. d4 {[%emt 0:00:06]} e6 {[%emt 0:00:16]} 2. Bf4 {[%emt 0:00:07]} c5 {[%emt 0:00:47]} 3. e3 {[%emt 0:00:07]} cxd4 {[%emt 0:00:33]} 4. exd4 {[%emt 0:00:09]} Qb6 {[%emt 0:00:06]} 5. Nc3 {[%emt 0:01:27]} Qxb2 {[%emt 0:00:45]} 6. Nb5 {[%emt 0:00:18] A40: Unusual replies to 1 d4.} Bb4+ {[%emt 0:00:08]} 7. Ke2 {[%emt 0:00:03] Black must now prevent Rb1.} Nc6 {[%emt 0:00:06]} 8. Kf3 $146 {[%emt 0:36:39]} (8. Qb1 $11 {remains equal.} Qxb1 (8... Nxd4+ 9. Kd3 $16) 9. Nc7+ (9. Rxb1 Ba5 $16) 9... Kd8 10. Rxb1) (8. h4 Nf6 9. Rb1 Qxa2 10. Nc7+ Ke7 11. Nxa8 Nd5 12. Bg5+ f6 13. Ra1 Nc3+ 14. Kd3 Ne5+ 15. dxe5 Qd5+ 16. Ke3 Nxd1+ {0-1 Atanasov,A (2420)-Xu,X (2637) Titled Tuesday intern op 14th May Early blitz 2024 (3)}) 8... e5 {[%emt 0:14:43]} (8... Nf6 $17 {White must now prevent ...0-0.} 9. c3 d5 (9... Bxc3 10. Rb1 $14) 10. cxb4 (10. Rb1 e5 $11) 10... e5) 9. Rb1 {[%emt 0:07:45]} (9. dxe5 $11 Nxe5+ 10. Ke2 (10. Kg3 g5 $11)) 9... Nxd4+ $17 {[%emt 0:00:58]} (9... Qxa2 10. dxe5 (10. Bxe5 d6 $11) 10... Qa5 11. Ra1 $16) 10. Qxd4 {[%emt 0:00:42]} Qxb1 $15 {[%emt 0:01:51]} 11. Bxe5 {[%emt 0:20:17]} Qxf1 $2 {[%emt 0:02:14]} ({Black should play} 11... b6 $1 $17 12. Qe4 (12. Nc7+ Kd8 $19) 12... Ne7 (12... Qxf1 13. Bd6+ Ne7 14. Qxe7#) 13. Nc7+ Kd8) 12. Ne2 {[%emt 0:01:53] Chess con chili.} Qxh1 {[%emt 0:00:46]} 13. Qxb4 $40 {[%emt 0:00:05][%mdl 128] Nc7+ would kill now. Black needs to defend precisely.} Nf6 $2 {[%emt 0:04:04][%mdl 8192]} (13... Ne7 $11 14. Nd6+ Kd8 (14... Kf8 $2 15. Qc4 $18)) 14. Nc7+ {[%emt 0:06:28] A dynamic duo of knights.} Kd8 {[%emt 0:00:20] [#] A mistake that costs the game.} 15. Bxf6+ $1 {[%emt 0:00:05]} gxf6 {[%emt 0:00:35] [#]} 16. Nd5 $1 {[%emt 0:00:03][%csl Gd5][%cal Rb4e7]} Re8 {[%emt 0:02:40]} 17. Qd6 {[%emt 0:00:16][%csl Gd5][%cal Rd6c7]} Re6 {[%emt 0:06:21]} 18. Qf8+ {[%emt 0:00:08]} Re8 {[%emt 0:00:04]} 19. Qxf7 {[%emt 0:00:09] Weighted Error Value: White=0.51/Black=0.99  Loses game:     	---       	Black=2      Mistake:       	White=3     	Black=2      Inaccurate:     	White=1     	---        OK:         	White=3     	Black=2      Best:        	---       	Black=4} 1-0

[Event "Chinese Team-ch Men 2025"]
[Site "Zhang Jiakou Hebei"]
[Date "2025.04.29"]
[Round "5.10"]
[White "Jiang, Haochen"]
[Black "Li, Di"]
[Result "1/2-1/2"]
[Annotator "RC"]
[ECO "B12"]
[WhiteElo "2441"]
[BlackElo "2571"]
[PlyCount "90"]
[EventDate "2025.04.26"]
[EventType "team-tourn"]
[EventCountry "CHN"]
[SourceTitle "playchess.com"]
[Source "ChessBase"]
[SourceQuality "1"]
[TimeControl "5400+30"]

1. e4 {[%emt 0:00:33]} c6 {[%emt 0:00:04]} 2. d4 {[%emt 0:04:49]} d5 {[%emt 0:00:04]} 3. e5 {[%emt 0:02:32]} h5 {[%emt 0:00:23]} 4. c4 {[%emt 0:01:57]} Bf5 {[%emt 0:06:20]} 5. Nc3 {[%emt 0:01:35]} e6 {[%emt 0:00:06]} 6. Be2 {[%emt 0:00:42]} Ne7 {[%emt 0:04:21]} 7. Nf3 {[%emt 0:01:47]} Nd7 {[%emt 0:00:53]} 8. O-O {[%emt 0:01:56]} a6 {[%emt 0:07:25]} 9. Bg5 {[%emt 0:02:40]} f6 {[%emt 0:05:10]} 10. exf6 {[%emt 0:03:40]} gxf6 {[%emt 0:00:04]} 11. Nh4 {[%emt 0:00:46]} Qb6 {[%emt 0:20:49]} 12. Bxh5+ {[%emt 0:16:13]} Kd8 {[%emt 0:00:14]} 13. Bf4 {[%emt 0:02:30]} Qxb2 {[%emt 0:03:08]} 14. Rc1 {[%emt 0:01:08]} dxc4 {[%emt 0:11:37]} 15. Nxf5 {[%emt 0:05:27]} Nxf5 {[%emt 0:00:36]} 16. Bf7 {[%emt 0:01:58]} Rh4 {[%emt 0:16:25]} 17. g3 {[%emt 0:04:51]} Bd6 {[%emt 0:03:01]} 18. Bxe6 {[%emt 0:27:27]} Bxf4 {[%emt 0:06:52]} 19. Rc2 {[%emt 0:03:37]} Qxc2 {[%emt 0:00:34]} 20. Qxc2 {[%emt 0:00:02]} Nxd4 {[%emt 0:00:05]} 21. Qb1 {[%emt 0:03:03]} Nxe6 {[%emt 0:00:39]} 22. gxh4 {[%emt 0:01:44]} Kc7 {[%emt 0:02:41]} 23. Qf5 {[%emt 0:01:34]} Re8 {[%emt 0:00:30]} 24. Qa5+ {[%emt 0:01:24]} Kc8 {[%emt 0:00:29]} 25. Rd1 {[%emt 0:00:23]} Ndc5 {[%emt 0:03:29]} 26. Qb4 {[%emt 0:03:51]} b5 {[%emt 0:00:28]} 27. a4 {[%emt 0:01:01]} Rg8+ {[%emt 0:00:19]} 28. Kf1 {[%emt 0:00:08]} Bxh2 {[%emt 0:00:15]} 29. axb5 {[%emt 0:02:01]} axb5 {[%emt 0:00:34]} 30. Nxb5 {[%emt 0:02:05]} cxb5 {[%emt 0:01:52]} 31. Qxb5 {[%emt 0:00:10]} Rg1+ {[%emt 0:04:44]} 32. Ke2 {[%emt 0:00:01]} Nf4+ {[%emt 0:00:13]} 33. Kf3 {[%emt 0:01:53]} Rxd1 {[%emt 0:00:46]} 34. Qxc5+ {[%emt 0:00:04]} Kd7 {[%emt 0:00:46]} 35. Qxc4 {[%emt 0:00:16]} Rd5 {[%emt 0:01:17]} 36. Qa4+ {[%emt 0:02:02]} Ke7 {[%emt 0:00:35]} 37. Qe4+ {[%emt 0:00:28]} Kf8 {[%emt 0:00:32]} 38. Qb4+ {[%emt 0:00:24]} Kf7 {[%emt 0:00:29]} 39. Qb7+ {[%emt 0:00:41]} Kg6 {[%emt 0:00:22]} 40. h5+ {[%emt 0:00:23]} Rxh5 {[%emt 0:00:19]} 41. Qe4+ {[%emt 0:00:37]} Kf7 {[%emt 0:00:54]} 42. Qb7+ {[%emt 0:00:15]} Kg6 {[%emt 0:00:17]} 43. Qc8 {[%emt 0:00:10]} f5 {[%emt 0:00:45]} 44. Qg8+ {[%emt 0:00:30]} Kf6 {[%emt 0:00:24]} 45. Qf8+ {[%emt 0:00:17]} Kg6 {[%emt 0:00:33]} 1/2-1/2

[Event "Chinese Team-ch Men 2025"]
[Site "Zhang Jiakou Hebei"]
[Date "2025.04.29"]
[Round "5.11"]
[White "Zhao, Yuanhe"]
[Black "Chen, KaiLin"]
[Result "1-0"]
[Annotator "RC"]
[ECO "A13"]
[WhiteElo "2482"]
[BlackElo "2329"]
[PlyCount "39"]
[EventDate "2025.04.26"]
[EventType "team-tourn"]
[EventCountry "CHN"]
[SourceTitle "playchess.com"]
[Source "ChessBase"]
[SourceQuality "1"]
[TimeControl "5400+30"]

1. Nf3 {[%emt 0:00:12]} Nf6 {[%emt 0:00:04]} 2. c4 {[%emt 0:00:04]} e6 {[%emt 0:00:05]} 3. Nc3 {[%emt 0:00:05]} d5 {[%emt 0:00:04]} 4. e3 {[%emt 0:00:06]} Be7 {[%emt 0:00:10]} 5. b3 {[%emt 0:00:48]} O-O {[%emt 0:00:04]} 6. Bb2 {[%emt 0:00:04]} c5 {[%emt 0:00:03]} 7. cxd5 {[%emt 0:01:41]} Nxd5 {[%emt 0:00:03]} 8. Nxd5 {[%emt 0:02:30]} exd5 {[%emt 0:00:03]} 9. Rc1 {[%emt 0:05:50]} Nc6 {[%emt 0:03:13]} 10. Bb5 {[%emt 0:06:41]} Bd7 {[%emt 0:03:14]} 11. O-O {[%emt 0:00:51]} Nb4 {[%emt 0:10:23]} 12. Bxd7 {[%emt 0:03:07]} Qxd7 {[%emt 0:00:04]} 13. Ne5 {[%emt 0:00:08]} Qf5 {[%emt 0:08:40]} 14. a3 {[%emt 0:00:43]} Nd3 {[%emt 0:01:56]} 15. Qc2 {[%emt 0:06:26]} c4 {[%emt 0:00:08]} 16. Nxd3 {[%emt 0:00:08]} cxd3 {[%emt 0:16:49]} 17. Qc7 {[%emt 0:00:32]} Qe6 {[%emt 0:04:11]} 18. b4 {[%emt 0:03:26]} b6 {[%emt 0:13:41]} 19. Rc6 {[%emt 0:03:54]} Qe4 {[%emt 0:04:25]} 20. f3 {[%emt 0:00:11]} 1-0

[Event "Chinese Team-ch Men 2025"]
[Site "Zhang Jiakou Hebei"]
[Date "2025.04.29"]
[Round "5.12"]
[White "Yu, Kaifeng"]
[Black "Jiang, Qinyu"]
[Result "1/2-1/2"]
[Annotator "RC"]
[ECO "D39"]
[WhiteElo "2312"]
[BlackElo "2280"]
[PlyCount "82"]
[EventDate "2025.04.26"]
[EventType "team-tourn"]
[EventCountry "CHN"]
[SourceTitle "playchess.com"]
[Source "ChessBase"]
[SourceQuality "1"]
[TimeControl "5400+30"]

1. d4 {[%emt 0:00:02]} Nf6 {[%emt 0:00:01]} 2. c4 {[%emt 0:00:09]} e6 {[%emt 0:00:00]} 3. Nf3 {[%emt 0:00:06]} d5 {[%emt 0:00:01]} 4. Nc3 {[%emt 0:00:06]} dxc4 {[%emt 0:00:02]} 5. e4 {[%emt 0:00:13]} Bb4 {[%emt 0:00:02]} 6. Bg5 {[%emt 0:00:07]} c5 {[%emt 0:00:01]} 7. Bxc4 {[%emt 0:00:12]} cxd4 {[%emt 0:00:01]} 8. Nxd4 {[%emt 0:00:10]} Bxc3+ {[%emt 0:00:02]} 9. bxc3 {[%emt 0:00:10]} Qa5 {[%emt 0:00:00]} 10. Bb5+ {[%emt 0:00:13]} Nbd7 {[%emt 0:00:02]} 11. Bxf6 {[%emt 0:00:14]} Qxc3+ {[%emt 0:00:01]} 12. Kf1 {[%emt 0:00:07]} gxf6 {[%emt 0:00:01]} 13. h4 {[%emt 0:00:09]} a6 {[%emt 0:00:01]} 14. Rh3 {[%emt 0:00:06]} Qb4 {[%emt 0:00:01]} 15. Be2 {[%emt 0:02:09]} Ne5 {[%emt 0:00:01]} 16. Rc1 {[%emt 0:25:43]} Qd6 {[%emt 0:03:31]} 17. Qd2 {[%emt 0:02:57]} Bd7 {[%emt 0:02:43]} 18. Qe3 {[%emt 0:03:28]} Rc8 {[%emt 0:04:17]} 19. Rd1 {[%emt 0:06:23]} Qc5 {[%emt 0:04:59]} 20. Qh6 {[%emt 0:08:14]} Ke7 {[%emt 0:04:40]} 21. g4 {[%emt 0:05:01]} Rhg8 {[%emt 0:07:58]} 22. g5 {[%emt 0:01:39]} fxg5 {[%emt 0:00:25]} 23. hxg5 {[%emt 0:00:36]} Rg6 {[%emt 0:00:04]} 24. Qxh7 {[%emt 0:03:13]} Ba4 {[%emt 0:04:22]} 25. Nb3 {[%emt 0:00:34]} Qb6 {[%emt 0:01:30]} 26. f4 {[%emt 0:33:05]} Nd7 {[%emt 0:05:27]} 27. Rhd3 {[%emt 0:02:41]} Qc7 {[%emt 0:08:21]} 28. Qh4 {[%emt 0:00:28]} Qb8 {[%emt 0:01:41]} 29. Rh3 {[%emt 0:01:38]} Rcg8 {[%emt 0:09:40]} 30. e5 {[%emt 0:01:35]} Qc7 {[%emt 0:01:27]} 31. Qe1 {[%emt 0:01:06]} Bc6 {[%emt 0:01:52]} 32. Qb4+ {[%emt 0:01:01]} Ke8 {[%emt 0:00:02]} 33. Qd6 {[%emt 0:01:28]} Qxd6 {[%emt 0:00:48]} 34. Rxd6 {[%emt 0:00:02]} Nxe5 {[%emt 0:00:50]} 35. fxe5 {[%emt 0:00:35]} Rxg5 {[%emt 0:00:01]} 36. Bf3 {[%emt 0:01:54]} Rg1+ {[%emt 0:04:27]} 37. Ke2 {[%emt 0:00:38]} Bb5+ {[%emt 0:01:02]} 38. Kd2 {[%emt 0:00:31]} R8g5 {[%emt 0:00:07]} 39. Bxb7 {[%emt 0:00:36]} Rxe5 {[%emt 0:00:18]} 40. Bxa6 {[%emt 0:00:36]} Rg2+ {[%emt 0:00:41]} 41. Kc3 {[%emt 0:00:21]} Rxa2 {[%emt 0:00:06]} 1/2-1/2

[Event "Chinese Team-ch Men 2025"]
[Site "Zhang Jiakou Hebei"]
[Date "2025.04.29"]
[Round "5.13"]
[White "Dai, Changren"]
[Black "Chen, Qi b"]
[Result "1/2-1/2"]
[Annotator "RC"]
[ECO "C67"]
[WhiteElo "2527"]
[BlackElo "2482"]
[PlyCount "66"]
[EventDate "2025.04.26"]
[EventType "team-tourn"]
[EventCountry "CHN"]
[SourceTitle "playchess.com"]
[Source "ChessBase"]
[SourceQuality "1"]
[TimeControl "5400+30"]

1. e4 {[%emt 0:00:05]} e5 {[%emt 0:00:44]} 2. Nf3 {[%emt 0:00:10]} Nc6 {[%emt 0:00:37]} 3. Bb5 {[%emt 0:00:10]} Nf6 {[%emt 0:02:08]} 4. O-O {[%emt 0:00:14]} Nxe4 {[%emt 0:00:11]} 5. Re1 {[%emt 0:00:10]} Nd6 {[%emt 0:00:06]} 6. Nxe5 {[%emt 0:00:10]} Be7 {[%emt 0:00:09]} 7. Bf1 {[%emt 0:00:09]} Nxe5 {[%emt 0:00:07]} 8. Rxe5 {[%emt 0:00:05]} O-O {[%emt 0:00:04]} 9. Nc3 {[%emt 0:00:25]} Ne8 {[%emt 0:04:17]} 10. Nd5 {[%emt 0:02:08]} Bd6 {[%emt 0:00:18]} 11. Re1 {[%emt 0:00:09]} c6 {[%emt 0:00:12]} 12. Ne3 {[%emt 0:00:11]} Bc7 {[%emt 0:00:29]} 13. Nf5 {[%emt 0:00:18]} d5 {[%emt 0:00:07]} 14. Ne7+ {[%emt 0:00:05]} Kh8 {[%emt 0:00:04]} 15. Nxc8 {[%emt 0:00:07]} Rxc8 {[%emt 0:00:03]} 16. d3 {[%emt 0:03:38]} Nf6 {[%emt 0:07:19]} 17. Qf3 {[%emt 0:05:32]} Qd7 {[%emt 0:03:36]} 18. g3 {[%emt 0:05:25]} Rce8 {[%emt 0:04:18]} 19. Bg5 {[%emt 0:03:37]} Bd8 {[%emt 0:01:26]} 20. a4 {[%emt 0:06:31]} Kg8 {[%emt 0:04:29]} 21. b4 {[%emt 0:08:53]} Rxe1 {[%emt 0:01:42]} 22. Rxe1 {[%emt 0:00:09]} Re8 {[%emt 0:00:03]} 23. Rxe8+ {[%emt 0:01:29]} Nxe8 {[%emt 0:00:44]} 24. Bd2 {[%emt 0:00:17]} g6 {[%emt 0:04:54]} 25. h4 {[%emt 0:03:44]} Ng7 {[%emt 0:02:26]} 26. Bg2 {[%emt 0:02:44]} Ne6 {[%emt 0:03:21]} 27. c3 {[%emt 0:03:41]} a6 {[%emt 0:00:25]} 28. h5 {[%emt 0:00:33]} f5 {[%emt 0:02:12]} 29. b5 {[%emt 0:03:33]} axb5 {[%emt 0:00:27]} 30. axb5 {[%emt 0:00:07]} Bf6 {[%emt 0:00:49]} 31. hxg6 {[%emt 0:00:47]} hxg6 {[%emt 0:00:04]} 32. g4 {[%emt 0:01:59]} f4 {[%emt 0:01:03]} 33. bxc6 {[%emt 0:03:29]} bxc6 {[%emt 0:00:07]} 1/2-1/2

[Event "Chinese Team-ch Men 2025"]
[Site "Zhang Jiakou Hebei"]
[Date "2025.04.29"]
[Round "5.14"]
[White "Jin, Hongtao"]
[Black "Wang, Shixu B"]
[Result "0-1"]
[Annotator "RC"]
[ECO "B90"]
[WhiteElo "2343"]
[BlackElo "2452"]
[PlyCount "64"]
[EventDate "2025.04.26"]
[EventType "team-tourn"]
[EventCountry "CHN"]
[SourceTitle "playchess.com"]
[Source "ChessBase"]
[SourceQuality "1"]
[TimeControl "5400+30"]

1. e4 {[%emt 0:00:04]} c5 {[%emt 0:00:18]} 2. Nf3 {[%emt 0:00:09]} d6 {[%emt 0:00:05]} 3. d4 {[%emt 0:00:07]} cxd4 {[%emt 0:00:06]} 4. Nxd4 {[%emt 0:00:07]} Nf6 {[%emt 0:00:04]} 5. Nc3 {[%emt 0:00:07]} a6 {[%emt 0:00:08]} 6. Be3 {[%emt 0:00:16]} e5 {[%emt 0:00:14]} 7. Nb3 {[%emt 0:00:09]} Be6 {[%emt 0:00:32]} 8. h3 {[%emt 0:00:23]} Be7 {[%emt 0:00:23]} 9. Qf3 {[%emt 0:00:44]} O-O {[%emt 0:00:21]} 10. g4 {[%emt 0:00:39]} a5 {[%emt 0:00:18]} 11. a4 {[%emt 0:00:22]} Na6 {[%emt 0:00:22]} 12. O-O-O {[%emt 0:00:40]} Rc8 {[%emt 0:00:17]} 13. Bb5 {[%emt 0:00:44]} Rxc3 {[%emt 0:00:48]} 14. bxc3 {[%emt 0:00:07]} Nc7 {[%emt 0:00:07]} 15. Bb6 {[%emt 0:20:18]} Qc8 {[%emt 0:00:47]} 16. Bxc7 {[%emt 0:07:54]} Qxc7 {[%emt 0:00:09]} 17. c4 {[%emt 0:05:22]} Rc8 {[%emt 0:05:03]} 18. Qd3 {[%emt 0:04:08]} Nd7 {[%emt 0:12:38]} 19. Kb2 {[%emt 0:18:06]} Nb6 {[%emt 0:08:06]} 20. Nxa5 {[%emt 0:06:34]} h6 {[%emt 0:32:10]} 21. Ra1 {[%emt 0:10:47]} d5 {[%emt 0:04:56]} 22. exd5 {[%emt 0:07:23]} Nxd5 {[%emt 0:06:49]} 23. cxd5 {[%emt 0:00:51]} e4 {[%emt 0:00:07]} 24. Qd2 {[%emt 0:02:06]} Bf6+ {[%emt 0:01:44]} 25. Kb1 {[%emt 0:02:38]} Bxd5 {[%emt 0:09:42]} 26. c4 {[%emt 0:08:21]} e3 {[%emt 0:01:43]} 27. Qxd5 {[%emt 0:00:08]} Qxa5 {[%emt 0:00:08]} 28. fxe3 {[%emt 0:03:41]} Qc3 {[%emt 0:02:17]} 29. Ra2 {[%emt 0:01:21]} Qb3+ {[%emt 0:00:07]} 30. Kc1 {[%emt 0:00:03]} Qxa2 {[%emt 0:00:07]} 31. Qxb7 {[%emt 0:01:08]} Qb2+ {[%emt 0:00:51]} 32. Kd1 {[%emt 0:00:06]} Rd8+ {[%emt 0:00:05]} 0-1

[Event "Chinese Team-ch Men 2025"]
[Site "Zhang Jiakou Hebei"]
[Date "2025.04.29"]
[Round "5.15"]
[White "Chu, Weichao"]
[Black "Yang, ZiLong"]
[Result "1-0"]
[Annotator "RC"]
[ECO "E05"]
[WhiteElo "2406"]
[BlackElo "2337"]
[PlyCount "99"]
[EventDate "2025.04.26"]
[EventType "team-tourn"]
[EventCountry "CHN"]
[SourceTitle "playchess.com"]
[Source "ChessBase"]
[SourceQuality "1"]
[TimeControl "5400+30"]

1. d4 {[%emt 0:00:03]} Nf6 {[%emt 0:00:22]} 2. c4 {[%emt 0:00:08]} e6 {[%emt 0:00:04]} 3. Nf3 {[%emt 0:00:07]} d5 {[%emt 0:00:13]} 4. g3 {[%emt 0:00:29]} Be7 {[%emt 0:00:30]} 5. Bg2 {[%emt 0:00:14]} O-O {[%emt 0:00:06]} 6. O-O {[%emt 0:00:15]} dxc4 {[%emt 0:00:54]} 7. Qc2 {[%emt 0:06:55]} a6 {[%emt 0:00:40]} 8. Qxc4 {[%emt 0:03:43]} b5 {[%emt 0:04:32]} 9. Qc2 {[%emt 0:01:15]} Bb7 {[%emt 0:00:18]} 10. Bd2 {[%emt 0:00:08]} Be4 {[%emt 0:03:14]} 11. Qc1 {[%emt 0:00:07]} Bb7 {[%emt 0:00:29]} 12. a3 {[%emt 0:03:44]} Nbd7 {[%emt 0:02:17]} 13. Ba5 {[%emt 0:05:21]} Bd6 {[%emt 0:03:19]} 14. Nbd2 {[%emt 0:00:56]} Rc8 {[%emt 0:03:58]} 15. Re1 {[%emt 0:32:15]} Qe7 {[%emt 0:05:13]} 16. e4 {[%emt 0:01:09]} e5 {[%emt 0:00:56]} 17. b4 {[%emt 0:00:32]} Rfe8 {[%emt 0:02:42]} 18. Ra2 {[%emt 0:02:31]} Qf8 {[%emt 0:17:39]} 19. dxe5 {[%emt 0:07:21]} Nxe5 {[%emt 0:02:33]} 20. Nxe5 {[%emt 0:00:08]} Bxe5 {[%emt 0:00:03]} 21. Rc2 {[%emt 0:02:58]} Qe7 {[%emt 0:00:50]} 22. Nb3 {[%emt 0:06:27]} c6 {[%emt 0:10:07]} 23. Nc5 {[%emt 0:02:27]} Bd4 {[%emt 0:00:16]} 24. Rd2 {[%emt 0:01:13]} Bxc5 {[%emt 0:03:38]} 25. bxc5 {[%emt 0:00:06]} Nd7 {[%emt 0:02:40]} 26. e5 {[%emt 0:03:13]} Nf6 {[%emt 0:07:42]} 27. Rd6 {[%emt 0:02:15]} Nd5 {[%emt 0:00:06]} 28. Bxd5 {[%emt 0:00:05]} cxd5 {[%emt 0:00:04]} 29. c6 {[%emt 0:00:10]} Ba8 {[%emt 0:01:15]} 30. Bb6 {[%emt 0:05:34]} d4 {[%emt 0:02:33]} 31. c7 {[%emt 0:10:46]} f6 {[%emt 0:05:03]} 32. f4 {[%emt 0:00:58]} fxe5 {[%emt 0:01:08]} 33. fxe5 {[%emt 0:00:05]} d3 {[%emt 0:01:05]} 34. Rxd3 {[%emt 0:01:01]} Qe6 {[%emt 0:01:36]} 35. Ba5 {[%emt 0:01:23]} h6 {[%emt 0:01:22]} 36. Rd6 {[%emt 0:00:34]} Qf7 {[%emt 0:00:49]} 37. Rf1 {[%emt 0:01:00]} Qb3 {[%emt 0:05:53]} 38. Qc5 {[%emt 0:01:08]} Qa2 {[%emt 0:05:44]} 39. Rd2 {[%emt 0:00:10]} Qb3 {[%emt 0:00:02]} 40. Rd7 {[%emt 0:00:37]} Qe6 {[%emt 0:03:43]} 41. Qd6 {[%emt 0:00:43]} Qg4 {[%emt 0:03:07]} 42. Rff7 {[%emt 0:00:14]} Be4 {[%emt 0:01:13]} 43. Rxg7+ {[%emt 0:00:41]} Qxg7 {[%emt 0:00:03]} 44. Rxg7+ {[%emt 0:00:05]} Kxg7 {[%emt 0:00:02]} 45. Bd2 {[%emt 0:00:27]} Bg6 {[%emt 0:00:14]} 46. h4 {[%emt 0:00:41]} h5 {[%emt 0:00:03]} 47. e6 {[%emt 0:00:26]} Bf5 {[%emt 0:00:06]} 48. Qe5+ {[%emt 0:00:27]} Kg6 {[%emt 0:00:01]} 49. e7 {[%emt 0:00:06]} Bg4 {[%emt 0:00:06]} 50. Bc3 {[%emt 0:00:08]} 1-0

[Event "Chinese Team-ch Men 2025"]
[Site "Zhang Jiakou Hebei"]
[Date "2025.04.29"]
[Round "5.16"]
[White "Yu, Zechen"]
[Black "Xi, Qi"]
[Result "0-1"]
[Annotator "RC"]
[ECO "C14"]
[WhiteElo "2116"]
[BlackElo "2257"]
[PlyCount "82"]
[EventDate "2025.04.26"]
[EventType "team-tourn"]
[EventCountry "CHN"]
[SourceTitle "playchess.com"]
[Source "ChessBase"]
[SourceQuality "1"]
[TimeControl "5400+30"]

1. e4 {[%emt 0:00:02]} e6 {[%emt 0:00:12]} 2. d4 {[%emt 0:00:05]} d5 {[%emt 0:00:03]} 3. Nc3 {[%emt 0:00:10]} Nf6 {[%emt 0:00:18]} 4. Bg5 {[%emt 0:00:06]} Be7 {[%emt 0:00:55]} 5. e5 {[%emt 0:00:50]} Nfd7 {[%emt 0:00:09]} 6. Bxe7 {[%emt 0:04:56]} Qxe7 {[%emt 0:00:53]} 7. f4 {[%emt 0:00:04]} a6 {[%emt 0:00:33]} 8. Nf3 {[%emt 0:01:15]} c5 {[%emt 0:00:12]} 9. Qd2 {[%emt 0:04:05]} Nc6 {[%emt 0:00:11]} 10. Ne2 {[%emt 0:05:57]} f6 {[%emt 0:02:44]} 11. O-O-O {[%emt 0:09:09]} b5 {[%emt 0:20:04]} 12. g4 {[%emt 0:23:06]} fxe5 {[%emt 0:07:37]} 13. dxe5 {[%emt 0:02:44]} Bb7 {[%emt 0:04:38]} 14. Bg2 {[%emt 0:03:29]} O-O-O {[%emt 0:02:18]} 15. Ng3 {[%emt 0:02:42]} Rhf8 {[%emt 0:04:37]} 16. Rhe1 {[%emt 0:07:35]} Nb6 {[%emt 0:05:59]} 17. f5 {[%emt 0:05:05]} Kb8 {[%emt 0:08:50]} 18. fxe6 {[%emt 0:11:50]} g6 {[%emt 0:05:08]} 19. Kb1 {[%emt 0:10:07]} Nc4 {[%emt 0:01:53]} 20. Qc1 {[%emt 0:02:24]} d4 {[%emt 0:01:21]} 21. Nf1 {[%emt 0:03:59]} Nb4 {[%emt 0:02:11]} 22. b3 {[%emt 0:01:13]} Bxf3 {[%emt 0:01:49]} 23. Bxf3 {[%emt 0:00:19]} Rxf3 {[%emt 0:00:01]} 24. bxc4 {[%emt 0:00:21]} Rc3 {[%emt 0:03:32]} 25. Qf4 {[%emt 0:00:42]} Nxc2 {[%emt 0:04:03]} 26. Qf6 {[%emt 0:00:25]} Re8 {[%emt 0:01:07]} 27. Re2 {[%emt 0:00:46]} Na3+ {[%emt 0:00:31]} 28. Ka1 {[%emt 0:00:04]} Nxc4 {[%emt 0:01:21]} 29. Ng3 {[%emt 0:00:58]} d3 {[%emt 0:01:07]} 30. Rf2 {[%emt 0:00:24]} Ne3 {[%emt 0:05:20]} 31. Rg1 {[%emt 0:00:36]} Qxe6 {[%emt 0:01:59]} 32. Qxe6 {[%emt 0:00:28]} Rxe6 {[%emt 0:00:00]} 33. Ne4 {[%emt 0:00:28]} Rc4 {[%emt 0:01:34]} 34. Rf8+ {[%emt 0:00:25]} Kc7 {[%emt 0:00:30]} 35. Nd6 {[%emt 0:00:39]} Rd4 {[%emt 0:00:50]} 36. Rc8+ {[%emt 0:00:25]} Kd7 {[%emt 0:00:17]} 37. Ra8 {[%emt 0:00:33]} d2 {[%emt 0:00:26]} 38. Ra7+ {[%emt 0:00:06]} Kc6 {[%emt 0:00:09]} 39. Rxa6+ {[%emt 0:00:40]} Kd5 {[%emt 0:00:02]} 40. Kb2 {[%emt 0:00:41]} d1=Q {[%emt 0:00:13]} 41. Rxd1 {[%emt 0:00:04]} Nxd1+ {[%emt 0:00:07]} 0-1